fUST/lending_fUST_20260602
["ID","MTS","AMOUNT","RATE_DAILY","PERIOD"]
[423754554,1780388826000,-2575.11103409,0.00011391,2]
[423754555,1780388831000,-500.0,0.00011391,2]
[423754556,1780388833000,-245.5231763,0.00011391,2]
[423754605,1780389032000,-500.0,0.00013969,2]
[423754588,1780389032000,-500.0,0.00013968,2]
[423754594,1780389032000,-500.0,0.00013968,2]
[423754593,1780389032000,-500.0,0.00013968,2]
[423754592,1780389032000,-500.0,0.00013968,2]
[423754591,1780389032000,-517.92588603,0.00013968,2]
[423754596,1780389032000,-154.29339048,0.00013968,2]
[423754595,1780389032000,-500.0,0.00013968,2]
[423754604,1780389032000,-617.26,0.00013969,2]
[423754597,1780389032000,-375.06191337,0.00013968,2]
[423754598,1780389032000,-500.0,0.00013968,2]
[423754600,1780389032000,-500.0,0.00013969,2]
[423754601,1780389032000,-434.49,0.00013969,2]
[423754603,1780389032000,-500.0,0.00013969,2]
[423754602,1780389032000,-500.0,0.00013969,2]
[423754589,1780389032000,-427.93,0.00013968,2]
[423754606,1780389032000,-500.0,0.00013969,2]
[423754599,1780389032000,-245.5231763,0.00013968,2]
[423754586,1780389032000,-215.49,0.00013968,2]
[423754569,1780389032000,-169.095574,0.00011506,2]
[423754587,1780389032000,-378.32,0.00013968,2]
[423754607,1780389032000,-500.0,0.00013969,2]
[423754568,1780389032000,-4236.22848351,0.00011391,2]
[423754567,1780389032000,-763.77151649,0.00011391,2]
[423754570,1780389032000,-150.07,0.00012,2]
[423754573,1780389032000,-362.62780038,0.00013698,2]
[423754572,1780389032000,-425.82890892,0.00013698,2]
[423754574,1780389032000,-500.0,0.00013698,2]
[423754571,1780389032000,-3429.593994,0.00013052,2]
[423754585,1780389032000,-563.5,0.00013968,2]
[423754575,1780389032000,-500.0,0.00013698,2]
[423754578,1780389032000,-500.0,0.00013698,2]
[423754576,1780389032000,-500.0,0.00013698,2]
[423754580,1780389032000,-160.0,0.0001392,2]
[423754579,1780389032000,-500.0,0.00013698,2]
[423754581,1780389032000,-160.0,0.0001392,2]
[423754582,1780389032000,-500.0,0.00013968,2]
[423754583,1780389032000,-500.0,0.00013968,2]
[423754584,1780389032000,-500.0,0.00013968,2]
[423754577,1780389032000,-500.83383589,0.00013698,2]
[423754608,1780389032000,-459.15974957,0.00013969,2]
[423754590,1780389032000,-508.2832579,0.00013968,2]
[423754610,1780389032000,-500.0,0.0001397,2]
[423754628,1780389032000,-500.0,0.00014244,2]
[423754632,1780389032000,-1781.0039,0.00014244,2]
[423754635,1780389032000,-150.67025953,0.00015751,2]
[423754637,1780389032000,-191.84382796,0.00016,2]
[423754634,1780389032000,-247.33307886,0.00014518,2]
[423754636,1780389032000,-181.11588362,0.00015751,2]
[423754638,1780389032000,-185.0,0.00016031,2]
[423754639,1780389032000,-444.0,0.00016031,2]
[423754629,1780389032000,-500.0,0.00014244,2]
[423754641,1780389032000,-191.84382796,0.000163,2]
[423754643,1780389032000,-301.34051906,0.00016523,2]
[423754645,1780389032000,-417.49222898,0.00016769,2]
[423754647,1780389032000,-162.83209114,0.00016823,2]
[423754640,1780389032000,-191.84382796,0.000162,2]
[423754644,1780389032000,-362.23176724,0.00016523,2]
[423754646,1780389032000,-2575.11103409,0.00016769,2]
[423754648,1780389032000,-186.31376658,0.00016868,2]
[423754611,1780389032000,-500.0,0.0001397,2]
[423754642,1780389032000,-191.84382796,0.000165,2]
[423754631,1780389032000,-523.19,0.00014244,2]
[423754649,1780389032000,-313.68623342,0.00016868,2]
[423754630,1780389032000,-500.0,0.00014244,2]
[423754633,1780389032000,-3043.158018,0.00014285,2]
[423754613,1780389032000,-500.0,0.0001397,2]
[423754609,1780389032000,-500.0,0.00013969,2]
[423754615,1780389032000,-500.0,0.0001397,2]
[423754614,1780389032000,-500.0,0.0001397,2]
[423754620,1780389032000,-162.83209117,0.00014144,2]
[423754617,1780389032000,-1781.0039,0.0001397,2]
[423754616,1780389032000,-500.0,0.0001397,2]
[423754619,1780389032000,-500.0,0.00013972,2]
[423754612,1780389032000,-500.0,0.0001397,2]
[423754622,1780389032000,-500.0,0.00014242,2]
[423754621,1780389032000,-500.0,0.00014242,2]
[423754623,1780389032000,-500.0,0.00014242,2]
[423754624,1780389032000,-500.0,0.00014242,2]
[423754625,1780389032000,-500.0,0.00014243,2]
[423754627,1780389032000,-500.0,0.00014244,2]
[423754650,1780389032000,-500.0,0.00016869,2]
[423754618,1780389032000,-500.0,0.00013972,2]
[423754626,1780389032000,-333.12931776,0.00014243,2]
[423754672,1780389033000,-500.0,0.00016869,2]
[423754674,1780389033000,-500.0,0.00016869,2]
[423754673,1780389033000,-500.0,0.00016869,2]
[423754677,1780389033000,-500.0,0.00016869,2]
[423754675,1780389033000,-500.0,0.00016869,2]
[423754676,1780389033000,-500.0,0.00016869,2]
[423754678,1780389033000,-500.0,0.00016869,2]
[423754682,1780389033000,-500.0,0.00016869,2]
[423754681,1780389033000,-500.0,0.00016869,2]
[423754683,1780389033000,-500.0,0.00016869,2]
[423754680,1780389033000,-500.0,0.00016869,2]
[423754684,1780389033000,-500.0,0.00016869,2]
[423754685,1780389033000,-500.0,0.00016869,2]
[423754687,1780389033000,-500.0,0.00016869,2]
[423754667,1780389033000,-500.0,0.00016869,2]
[423754679,1780389033000,-177.9,0.00016869,2]
[423754671,1780389033000,-570.88510212,0.00016869,2]
[423754658,1780389033000,-18.48092149,0.00016869,2]
[423754665,1780389033000,-500.0,0.00016869,2]
[423754689,1780389033000,-500.0,0.00016869,2]
[423754651,1780389033000,-288.60788806,0.00016869,2]
[423754652,1780389033000,-500.0,0.00016869,2]
[423754653,1780389033000,-500.0,0.00016869,2]
[423754654,1780389033000,-479.07027101,0.00016869,2]
[423754655,1780389033000,-20.92972899,0.00016869,2]
[423754657,1780389033000,-481.51907851,0.00016869,2]
[423754656,1780389033000,-500.0,0.00016869,2]
[423754659,1780389033000,-541.3030681,0.00016869,2]
[423754661,1780389033000,-269.67327385,0.00016869,2]
[423754660,1780389033000,-500.0,0.00016869,2]
[423754663,1780389033000,-454.41900695,0.00016869,2]
[423754662,1780389033000,-230.32672615,0.00016869,2]
[423754664,1780389033000,-500.0,0.00016869,2]
[423754668,1780389033000,-500.0,0.00016869,2]
[423754666,1780389033000,-500.0,0.00016869,2]
[423754670,1780389033000,-493.66634876,0.00016869,2]
[423754669,1780389033000,-500.0,0.00016869,2]
[423754686,1780389033000,-500.0,0.00016869,2]
[423754688,1780389033000,-164.86,0.00016869,2]
[423754691,1780389033000,-173.63844181,0.00017035,2]
[423754715,1780389033000,-156.0,0.00017363,2]
[423754712,1780389033000,-156.0,0.00017363,2]
[423754714,1780389033000,-156.0,0.00017363,2]
[423754716,1780389033000,-156.0,0.00017363,2]
[423754718,1780389033000,-162.55626552,0.00017363,2]
[423754719,1780389033000,-166.0,0.00017363,2]
[423754720,1780389033000,-412.57771167,0.0001738,2]
[423754721,1780389033000,-724.46353448,0.0001738,2]
[423754723,1780389033000,-311.51015173,0.0001738,2]
[423754722,1780389033000,-602.68103812,0.0001738,2]
[423754724,1780389033000,-399.93710389,0.0001738,2]
[423754725,1780389033000,-310.64929149,0.0001738,2]
[423754727,1780389033000,-905.5794181,0.00017723,2]
[423754726,1780389033000,-411.92971721,0.0001738,2]
[423754729,1780389033000,-4003.76538744,0.00018157,2]
[423754728,1780389033000,-4624.7263251,0.00018157,2]
[423754690,1780389033000,-500.0,0.00016869,2]
[423754713,1780389033000,-156.0,0.00017363,2]
[423754710,1780389033000,-156.0,0.00017363,2]
[423754717,1780389033000,-156.0,0.00017363,2]
[423754709,1780389033000,-172.0,0.00017363,2]
[423754692,1780389033000,-452.01077859,0.00017037,2]
[423754697,1780389033000,-500.0,0.00017112,2]
[423754694,1780389033000,-155.75507586,0.00017037,2]
[423754711,1780389033000,-156.0,0.00017363,2]
[423754698,1780389033000,-216.43095413,0.00017142,2]
[423754696,1780389033000,-199.96855194,0.00017037,2]
[423754693,1780389033000,-543.34765086,0.00017037,2]
[423754701,1780389033000,-500.0,0.00017143,2]
[423754699,1780389033000,-464.47889005,0.00017143,2]
[423754695,1780389033000,-155.32464574,0.00017037,2]
[423754703,1780389033000,-500.0,0.00017143,2]
[423754700,1780389033000,-500.0,0.00017143,2]
[423754704,1780389033000,-500.0,0.00017143,2]
[423754706,1780389033000,-166.0,0.00017363,2]
[423754708,1780389033000,-166.0,0.00017363,2]
[423754705,1780389033000,-500.0,0.00017143,2]
[423754702,1780389033000,-150.96585147,0.00017143,2]
[423754707,1780389033000,-166.0,0.00017363,2]
[423754747,1780389038000,-433.93388898,0.00019,3]
[423754745,1780389038000,-172.2,0.00018936,2]
[423754744,1780389038000,-180.72062066,0.000187,2]
[423754743,1780389038000,-1259.1741339,0.00018157,2]
[423754738,1780389038000,-12.54525138,0.00016031,2]
[423754740,1780389038000,-651.0,0.00017363,2]
[423754741,1780389038000,-651.0,0.00017363,2]
[423754737,1780389038000,-820.992352,0.00016031,2]
[423754736,1780389038000,-580.46239662,0.00016031,2]
[423754746,1780389038000,-2458.0,0.00019,9]
[423754739,1780389038000,-651.0,0.00017363,2]
[423754742,1780389038000,-10760.76255676,0.00018157,2]
[423754756,1780389038000,-305.28,0.00019726,4]
[423754749,1780389038000,-444.0,0.00019031,2]
[423754751,1780389038000,-158.14,0.00019099,2]
[423754752,1780389038000,-152.0,0.00019116,7]
[423754750,1780389038000,-172.92,0.00019078,2]
[423754754,1780389038000,-162.83209114,0.00019503,2]
[423754753,1780389038000,-159.98,0.00019457,2]
[423754758,1780389038000,-300.0,0.00019918,2]
[423754755,1780389038000,-160.5,0.00019565,2]
[423754757,1780389038000,-195.5,0.00019764,2]
[423754759,1780389038000,-300.0,0.00019945,4]
[423754760,1780389038000,-300.0,0.00019945,4]
[423754748,1780389038000,-185.0,0.00019031,2]
[423754761,1780389039000,-500.0,0.00019948,2]
[423754764,1780389039000,-500.0,0.00019949,2]
[423754763,1780389039000,-500.0,0.00019949,2]
[423754765,1780389039000,-500.0,0.00019949,2]
[423754767,1780389039000,-393.54336786,0.0001995,2]
[423754766,1780389039000,-490.76747995,0.00019949,2]
[423754762,1780389039000,-500.0,0.00019949,2]
[423754790,1780389044000,-228.32830723,0.00017363,2]
[423754788,1780389044000,-237.10330633,0.00017363,2]
[423754789,1780389044000,-422.67169277,0.00017363,2]
[423754787,1780389044000,-413.89669367,0.00017363,2]
[423754785,1780389044000,-651.0,0.00017363,2]
[423754786,1780389044000,-651.0,0.00017363,2]
[423754791,1780389045000,-507.15312528,0.00017363,2]
[423754792,1780389045000,-143.84687472,0.00017363,2]
[423754794,1780389045000,-651.0,0.00017363,2]
[423754798,1780389045000,-5982.12051416,0.0001995,2]
[423754796,1780389045000,-651.0,0.00017363,2]
[423754797,1780389045000,-651.0,0.00017363,2]
[423754795,1780389045000,-651.0,0.00017363,2]
[423754793,1780389045000,-651.0,0.00017363,2]
[423754804,1780389046000,-651.0,0.00017363,2]
[423754805,1780389046000,-6385.3237992,0.0001995,2]
[423754806,1780389046000,-3844.94112776,0.0001995,2]
[423754994,1780389149000,-221.84106914,0.000139,2]
[423755019,1780390112000,750.0,2e-05,2]
[423755024,1780390113000,750.0,3.44e-05,2]
[423755022,1780390113000,500.0,2.96e-05,2]
[423755023,1780390113000,250.0,2.96e-05,2]
[423755020,1780390113000,250.0,2.48e-05,2]
[423755021,1780390113000,500.0,2.48e-05,2]
[423755038,1780390232000,-406.31779836,0.00011527,2]
[423755037,1780390232000,-395.18792757,0.00011527,2]
[423755042,1780390238000,-4198.49427407,0.00011527,2]
[423755044,1780390238000,-1000.0,0.00013699,2]
[423755043,1780390238000,-150.07,0.00012,2]
[423755071,1780390239000,-500.0,0.00014998,2]
[423755072,1780390239000,-500.0,0.00014999,2]
[423755070,1780390239000,-500.0,0.00014998,2]
[423755074,1780390239000,-500.0,0.00014999,2]
[423755073,1780390239000,-500.0,0.00014999,2]
[423755078,1780390239000,-162.83209114,0.00015063,2]
[423755079,1780390239000,-414.20608427,0.00015163,2]
[423755077,1780390239000,-30000.0,0.00015,2]
[423755075,1780390239000,-500.0,0.00014999,2]
[423755087,1780390239000,-165.3107672,0.0001575,2]
[423755076,1780390239000,-500.0,0.00014999,2]
[423755081,1780390239000,-9966.6267442,0.00015326,2]
[423755083,1780390239000,-152.96222558,0.00015749,2]
[423755082,1780390239000,-222.0,0.00015362,2]
[423755086,1780390239000,-173.95094475,0.0001575,2]
[423755069,1780390239000,-500.0,0.00014998,2]
[423755084,1780390239000,-168.31098754,0.00015749,2]
[423755090,1780390239000,-191.84382795,0.000162,2]
[423755088,1780390239000,-191.84382795,0.00016,2]
[423755080,1780390239000,-172552.91415644,0.00015226,2]
[423755068,1780390239000,-500.0,0.00014998,2]
[423755060,1780390239000,-353.20755593,0.00014998,2]
[423755063,1780390239000,-500.0,0.00014998,2]
[423755045,1780390239000,-221.84106914,0.000139,2]
[423755051,1780390239000,-500.0,0.00013968,2]
[423755052,1780390239000,-500.0,0.00013968,2]
[423755046,1780390239000,-1200.0,0.00013965,2]
[423755050,1780390239000,-160.0,0.00013968,2]
[423755048,1780390239000,-266.0,0.00013966,2]
[423755047,1780390239000,-1464.90229151,0.00013966,8]
[423755049,1780390239000,-300.0,0.00013966,2]
[423755053,1780390239000,-500.0,0.00013968,2]
[423755067,1780390239000,-500.0,0.00014998,2]
[423755054,1780390239000,-500.0,0.00013968,2]
[423755056,1780390239000,-500.0,0.00013968,2]
[423755057,1780390239000,-374.39995979,0.00013968,2]
[423755066,1780390239000,-500.0,0.00014998,2]
[423755059,1780390239000,-160.0,0.0001397,2]
[423755089,1780390239000,-166.0,0.00016013,2]
[423755058,1780390239000,-500.0,0.00013968,2]
[423755061,1780390239000,-165.32989495,0.00014998,2]
[423755062,1780390239000,-500.0,0.00014998,2]
[423755065,1780390239000,-285.41044847,0.00014998,2]
[423755055,1780390239000,-500.0,0.00013968,2]
[423755091,1780390239000,-191.84382795,0.000163,2]
[423755064,1780390239000,-500.0,0.00014998,2]
[423755092,1780390239000,-414.20608426,0.00016347,2]
[423755116,1780390239000,-225.98453183,0.00016639,2]
[423755118,1780390239000,-155.22195876,0.00016639,2]
[423755120,1780390239000,-150.56386439,0.00016639,2]
[423755119,1780390239000,-163.38581601,0.00016639,2]
[423755121,1780390239000,-153.43775402,0.00016639,2]
[423755126,1780390239000,-503.7229213,0.00016752,2]
[423755124,1780390239000,-500.0,0.00016752,2]
[423755123,1780390239000,-500.0,0.00016752,2]
[423755130,1780390239000,-165.66077539,0.00017035,2]
[423755117,1780390239000,-165.03332008,0.00016639,2]
[423755125,1780390239000,-500.0,0.00016752,2]
[423755129,1780390239000,-500.0,0.00017026,2]
[423755127,1780390239000,-500.0,0.00016752,2]
[423755131,1780390239000,-162.34118184,0.00017035,2]
[423755132,1780390239000,-174.11576666,0.00017035,2]
[423755133,1780390239000,-175.75293797,0.00017035,2]
[423755136,1780390239000,-327.66764226,0.00017035,2]
[423755134,1780390239000,-154.98468023,0.00017035,2]
[423755085,1780390239000,-160.3611833,0.00015749,2]
[423755135,1780390239000,-178.62396367,0.00017035,2]
[423755122,1780390239000,-231.16499053,0.00016639,2]
[423755115,1780390239000,-189.44031768,0.00016521,2]
[423755128,1780390239000,-25000.0,0.000169,2]
[423755109,1780390239000,-219.94754052,0.00016521,2]
[423755093,1780390239000,-191.84382795,0.000165,2]
[423755095,1780390239000,-163.83382113,0.00016521,2]
[423755094,1780390239000,-25000.0,0.000165,2]
[423755096,1780390239000,-156.58278004,0.00016521,2]
[423755098,1780390239000,-168.45937724,0.00016521,2]
[423755097,1780390239000,-172.80253595,0.00016521,2]
[423755099,1780390239000,-210.64348447,0.00016521,2]
[423755102,1780390239000,-320.72236661,0.00016521,2]
[423755105,1780390239000,-170.11236323,0.00016521,2]
[423755106,1780390239000,-173.92973446,0.00016521,2]
[423755100,1780390239000,-305.92445115,0.00016521,2]
[423755103,1780390239000,-171.66695281,0.00016521,2]
[423755104,1780390239000,-159.99971412,0.00016521,2]
[423755107,1780390239000,-221.30888073,0.00016521,2]
[423755108,1780390239000,-189.35208834,0.00016521,2]
[423755114,1780390239000,-330.62153439,0.00016521,2]
[423755111,1780390239000,-180.45808743,0.00016521,2]
[423755112,1780390239000,-347.9018895,0.00016521,2]
[423755110,1780390239000,-206.12474668,0.00016521,2]
[423755101,1780390239000,-336.62197508,0.00016521,2]
[423755113,1780390239000,-160.82724103,0.00016521,2]
[423755216,1780390240000,-190.8657604,0.00017378,2]
[423755217,1780390240000,-418.96207456,0.00017378,2]
[423755219,1780390240000,-264.94855198,0.00017378,2]
[423755214,1780390240000,-618.37424005,0.00017378,2]
[423755210,1780390240000,-156.60561678,0.00017378,2]
[423755211,1780390240000,-361.39094309,0.00017378,2]
[423755212,1780390240000,-568.05626502,0.00017378,2]
[423755208,1780390240000,-271.87046909,0.00017378,2]
[423755209,1780390240000,-202.0196903,0.00017378,2]
[423755218,1780390240000,-238.69562556,0.00017378,2]
[423755205,1780390240000,-510.33708969,0.00017378,2]
[423755213,1780390240000,-485.57229577,0.00017378,2]
[423755220,1780390240000,-695.80377901,0.00017378,2]
[423755229,1780390240000,-677.95359548,0.000175,2]
[423755221,1780390240000,-152.41854885,0.00017378,2]
[423755223,1780390240000,-482.4817231,0.00017378,2]
[423755224,1780390240000,-568.32095303,0.00017378,2]
[423755232,1780390240000,-465.66587628,0.000175,2]
[423755233,1780390240000,-490.15744802,0.000175,2]
[423755234,1780390240000,-518.40760784,0.000175,2]
[423755225,1780390240000,-25000.0,0.000175,2]
[423755235,1780390240000,-156.53130877,0.000175,2]
[423755226,1780390240000,-156.38192737,0.000175,2]
[423755227,1780390240000,-243.94259919,0.000175,2]
[423755230,1780390240000,-522.34729998,0.000175,2]
[423755228,1780390240000,-254.7314023,0.000175,2]
[423755206,1780390240000,-410.47311139,0.00017378,2]
[423755222,1780390240000,-661.24306879,0.00017378,2]
[423755204,1780390240000,-479.99914237,0.00017378,2]
[423755183,1780390240000,-491.50146339,0.00017378,2]
[423755207,1780390240000,-521.78920338,0.00017378,2]
[423755236,1780390240000,-191.24456763,0.000175,2]
[423755176,1780390240000,-179.58899194,0.00017377,2]
[423755175,1780390240000,-500.0,0.000173,2]
[423755177,1780390240000,-331.32155079,0.00017378,2]
[423755180,1780390240000,-220.81731635,0.00017378,2]
[423755179,1780390240000,-348.23153332,0.00017378,2]
[423755181,1780390240000,-309.96936045,0.00017378,2]
[423755178,1780390240000,-324.68236367,0.00017378,2]
[423755182,1780390240000,-357.24792735,0.00017378,2]
[423755185,1780390240000,-505.37813173,0.00017378,2]
[423755186,1780390240000,-631.93045342,0.00017378,2]
[423755184,1780390240000,-232.84628538,0.00017378,2]
[423755192,1780390240000,-152.59084326,0.00017378,2]
[423755202,1780390240000,-382.34619179,0.00017378,2]
[423755188,1780390240000,-228.56933606,0.00017378,2]
[423755187,1780390240000,-673.24395015,0.00017378,2]
[423755189,1780390240000,-157.69473725,0.00017378,2]
[423755191,1780390240000,-243.58613224,0.00017378,2]
[423755193,1780390240000,-641.44473321,0.00017378,2]
[423755194,1780390240000,-462.66485331,0.00017378,2]
[423755195,1780390240000,-192.8786939,0.00017378,2]
[423755196,1780390240000,-250.28135622,0.00017378,2]
[423755197,1780390240000,-160.58552821,0.00017378,2]
[423755198,1780390240000,-527.25881392,0.00017378,2]
[423755200,1780390240000,-187.94024396,0.00017378,2]
[423755199,1780390240000,-465.69257076,0.00017378,2]
[423755203,1780390240000,-515.00085842,0.00017378,2]
[423755201,1780390240000,-153.92358878,0.00017378,2]
[423755190,1780390240000,-391.86687159,0.00017378,2]
[423755241,1780390240000,-663.9266422,0.000175,2]
[423755215,1780390240000,-541.3742623,0.00017378,2]
[423755245,1780390240000,-414.20608426,0.00017532,2]
[423755273,1780390240000,-300.0,0.00019945,2]
[423755274,1780390240000,-300.0,0.00019945,4]
[423755275,1780390240000,-300.0,0.00019945,4]
[423755277,1780390240000,-300.0,0.00019945,4]
[423755276,1780390240000,-300.0,0.00019945,4]
[423755278,1780390240000,-300.0,0.00019945,4]
[423755279,1780390240000,-300.0,0.00019945,4]
[423755281,1780390240000,-300.0,0.00019945,4]
[423755280,1780390240000,-300.0,0.00019945,4]
[423755282,1780390240000,-300.0,0.00019945,4]
[423755283,1780390240000,-300.0,0.00019945,4]
[423755285,1780390240000,-118946.6271368,0.0001995,2]
[423755284,1780390240000,-300.0,0.00019945,4]
[423755272,1780390240000,-300.0,0.00019945,4]
[423755287,1780390240000,-999.89728458,0.0002,3]
[423755289,1780390240000,-78576.26099075,0.0002,3]
[423755293,1780390240000,-864.0,0.00020693,2]
[423755291,1780390240000,-1282.88946643,0.00020164,2]
[423755292,1780390240000,-160.0,0.00020301,3]
[423755294,1780390240000,-160.0,0.00020728,4]
[423755288,1780390240000,-151.0,0.0002,2]
[423755290,1780390240000,-194.55,0.000201,2]
[423755296,1780390240000,-522.94447044,0.00020916,2]
[423755297,1780390240000,-797504.41323224,0.00021,2]
[423755295,1780390240000,-832.21848821,0.00020777,30]
[423755298,1780390240000,-275.58,0.00021,7]
[423755299,1780390240000,-151.0,0.00021,2]
[423755300,1780390240000,-160.0,0.00021155,5]
[423755286,1780390240000,-95239.73422828,0.0002,2]
[423755265,1780390240000,-7278.9805564,0.00018788,2]
[423755238,1780390240000,-168.77333453,0.000175,2]
[423755268,1780390240000,-1122.52828312,0.00019007,2]
[423755240,1780390240000,-487.02354551,0.000175,2]
[423755244,1780390240000,-495.09996024,0.000175,2]
[423755237,1780390240000,-195.32320519,0.000175,2]
[423755239,1780390240000,-496.98232618,0.000175,2]
[423755243,1780390240000,-380.86564371,0.000175,2]
[423755242,1780390240000,-659.84262157,0.000175,2]
[423755247,1780390240000,-166.0,0.00017574,2]
[423755246,1780390240000,-166.0,0.00017574,2]
[423755267,1780390240000,-720.0,0.00018811,2]
[423755250,1780390240000,-651.0,0.00017574,2]
[423755255,1780390240000,-500.0,0.00017574,2]
[423755249,1780390240000,-172.0,0.00017574,2]
[423755256,1780390240000,-801.80591652,0.00017721,2]
[423755257,1780390240000,-869.75472376,0.00017721,2]
[423755248,1780390240000,-166.0,0.00017574,2]
[423755252,1780390240000,-651.0,0.00017574,2]
[423755258,1780390240000,-826.55383599,0.00017721,2]
[423755264,1780390240000,-414.20608426,0.00018716,2]
[423755271,1780390240000,-155.59377222,0.000199,2]
[423755270,1780390240000,-414.20608426,0.000199,2]
[423755262,1780390240000,-962.16709982,0.00018235,2]
[423755263,1780390240000,-1043.70566851,0.00018236,2]
[423755266,1780390240000,-1262.1674913,0.00018788,2]
[423755261,1780390240000,-153.368,0.00018157,2]
[423755259,1780390240000,-500.0,0.00017848,2]
[423755260,1780390240000,-608.60090741,0.00018122,2]
[423755253,1780390240000,-651.0,0.00017574,2]
[423755251,1780390240000,-651.0,0.00017574,2]
[423755254,1780390240000,-651.0,0.00017574,2]
[423755269,1780390240000,-162.83209114,0.00019522,2]
[423755352,1780390241000,-500.0,0.00021899,7]
[423755349,1780390241000,-500.0,0.00021899,7]
[423755353,1780390241000,-520.43,0.00021899,7]
[423755350,1780390241000,-500.0,0.00021899,7]
[423755348,1780390241000,-500.0,0.00021899,7]
[423755343,1780390241000,-500.0,0.00021899,7]
[423755345,1780390241000,-500.0,0.00021899,7]
[423755346,1780390241000,-500.0,0.00021899,7]
[423755344,1780390241000,-500.0,0.00021899,7]
[423755339,1780390241000,-500.0,0.00021899,7]
[423755338,1780390241000,-500.0,0.00021899,7]
[423755347,1780390241000,-500.0,0.00021899,7]
[423755351,1780390241000,-500.0,0.00021899,7]
[423755368,1780390241000,-500.0,0.00021917,2]
[423755355,1780390241000,-500.0,0.00021899,7]
[423755356,1780390241000,-500.0,0.00021899,7]
[423755358,1780390241000,-500.0,0.00021899,7]
[423755357,1780390241000,-500.0,0.00021899,7]
[423755359,1780390241000,-500.0,0.00021899,7]
[423755363,1780390241000,-500.0,0.00021899,7]
[423755361,1780390241000,-500.0,0.00021899,7]
[423755366,1780390241000,-500.0,0.00021899,7]
[423755364,1780390241000,-500.0,0.00021899,7]
[423755365,1780390241000,-263.79,0.00021899,7]
[423755360,1780390241000,-500.0,0.00021899,7]
[423755362,1780390241000,-500.0,0.00021899,7]
[423755367,1780390241000,-500.0,0.00021917,2]
[423755337,1780390241000,-500.0,0.00021899,7]
[423755354,1780390241000,-500.0,0.00021899,7]
[423755336,1780390241000,-500.0,0.00021899,7]
[423755332,1780390241000,-500.0,0.00021899,7]
[423755340,1780390241000,-500.0,0.00021899,7]
[423755370,1780390241000,-505.10112434,0.00021917,2]
[423755301,1780390241000,-522.94447044,0.00021324,2]
[423755304,1780390241000,-204.81027624,0.00021546,7]
[423755303,1780390241000,-152.0,0.0002149,30]
[423755302,1780390241000,-150.37,0.000214,2]
[423755305,1780390241000,-166.609272,0.0002156,2]
[423755308,1780390241000,-172.99696,0.0002156,2]
[423755306,1780390241000,-216.592054,0.0002156,2]
[423755311,1780390241000,-172.996961,0.0002156,2]
[423755312,1780390241000,-348.364842,0.0002156,2]
[423755314,1780390241000,-160.0,0.00021582,6]
[423755310,1780390241000,-255.467551,0.0002156,2]
[423755316,1780390241000,-824.0,0.00021616,2]
[423755341,1780390241000,-500.0,0.00021899,7]
[423755318,1780390241000,-1000.0,0.00021633,5]
[423755331,1780390241000,-500.0,0.00021899,7]
[423755322,1780390241000,-630.61092441,0.00021816,30]
[423755323,1780390241000,-248.1,0.00021858,10]
[423755330,1780390241000,-500.0,0.00021899,7]
[423755329,1780390241000,-500.0,0.00021899,7]
[423755326,1780390241000,-500.0,0.00021899,7]
[423755327,1780390241000,-500.0,0.00021899,7]
[423755325,1780390241000,-1036.66047984,0.0002188,2]
[423755328,1780390241000,-328.12,0.00021899,7]